[Event "Queens Festival Europe 2022"]
[Site "Tornelo"]
[Date "2022.06.19"]
[Round "4.8"]
[White "Ostafiev, Cristina"]
[Black "Bruntse, Caroline Lindegaard"]
[Result "0-1"]
[ECO "B50"]
[WhiteElo "1173"]
[BlackElo "1503"]
[Annotator "NA RC"]
[PlyCount "34"]
[EventDate "2022.06.19"]
[EventType "swiss"]
[EventCountry "NET"]
[SourceTitle "playchess.com"]
[Source "ChessBase"]
[SourceQuality "1"]
[TimeControl "180+2"]

1. e4 {[%emt 0:00:02]} c5 {[%emt 0:00:07]} 2. Nc3 {[%emt 0:00:03]} d6 {[%emt 0:00:01]} 3. Bc4 {[%emt 0:00:03]} Nc6 {[%emt 0:00:13]} 4. d3 {[%emt 0:00:03]} g6 {[%emt 0:00:07]} 5. Nf3 {[%emt 0:00:27]} Nf6 {[%emt 0:00:11]} 6. Ng5 {[%emt 0:00:35]} e6 {[%emt 0:00:07]} 7. Nf3 {[%emt 0:00:16]} Bg7 {[%emt 0:00:02]} 8. Bg5 {[%emt 0:00:06]} O-O {[%emt 0:00:04]} 9. g4 {[%emt 0:00:15]} h6 {[%emt 0:00:10]} 10. Bxf6 {[%emt 0:00:05]} Bxf6 {[%emt 0:00:03]} 11. h4 {[%emt 0:00:05]} a6 {[%emt 0:00:08]} 12. h5 {[%emt 0:00:29]} b5 {[%emt 0:00:34]} 13. Bb3 {[%emt 0:00:10]} g5 {[%emt 0:00:26]} 14. Nh2 {[%emt 0:00:22]} Rb8 {[%emt 0:00:13]} 15. Qd2 {[%emt 0:00:06]} a5 {[%emt 0:00:11]} 16. a3 {[%emt 0:00:10]} Nd4 {[%emt 0:00:23]} 17. f4 {[%emt 0:00:07]} Bb7 {[%emt 0:00:16]} 0-1

[Event "Queens Festival Europe 2022"]
[Site "Tornelo"]
[Date "2022.06.19"]
[Round "4.9"]
[White "Grimaldi, Angela Flavia"]
[Black "Stewart-Bermann, Tanya"]
[Result "1-0"]
[ECO "B52"]
[WhiteElo "1995"]
[BlackElo "1863"]
[Annotator "NA RC"]
[PlyCount "97"]
[EventDate "2022.06.19"]
[EventType "swiss"]
[EventCountry "NET"]
[SourceTitle "playchess.com"]
[Source "ChessBase"]
[SourceQuality "1"]
[TimeControl "180+2"]

1. e4 {[%emt 0:00:02]} c5 {[%emt 0:00:04]} 2. Nf3 {[%emt 0:00:02]} d6 {[%emt 0:00:02]} 3. Bb5+ {[%emt 0:00:02]} Bd7 {[%emt 0:00:03]} 4. Bxd7+ {[%emt 0:00:02]} Qxd7 {[%emt 0:00:01]} 5. c4 {[%emt 0:00:02]} Nc6 {[%emt 0:00:02]} 6. d4 {[%emt 0:00:02]} cxd4 {[%emt 0:00:02]} 7. Nxd4 {[%emt 0:00:00]} Nf6 {[%emt 0:00:01]} 8. Nc3 {[%emt 0:00:02]} g6 {[%emt 0:00:02]} 9. f3 {[%emt 0:00:06]} Bg7 {[%emt 0:00:02]} 10. Be3 {[%emt 0:00:02]} O-O {[%emt 0:00:03]} 11. Rc1 {[%emt 0:00:01]} a6 {[%emt 0:00:12]} 12. O-O {[%emt 0:00:03]} Rac8 {[%emt 0:00:02]} 13. b3 {[%emt 0:00:02]} Nxd4 {[%emt 0:00:29]} 14. Bxd4 {[%emt 0:00:04]} Nh5 {[%emt 0:00:17]} 15. Nd5 {[%emt 0:00:07]} Rc6 {[%emt 0:00:53]} 16. Bxg7 {[%emt 0:00:08]} Nxg7 {[%emt 0:00:06]} 17. Qd2 {[%emt 0:00:12]} Ne8 {[%emt 0:00:08]} 18. Qg5 {[%emt 0:00:11]} e6 {[%emt 0:00:06]} 19. Ne7+ {[%emt 0:00:09]} Kg7 {[%emt 0:00:07]} 20. Nxc6 {[%emt 0:00:03]} Qxc6 {[%emt 0:00:01]} 21. Rfd1 {[%emt 0:00:04]} h6 {[%emt 0:00:10]} 22. Qe7 {[%emt 0:00:08]} Qc5+ {[%emt 0:00:04]} 23. Kh1 {[%emt 0:00:03]} h5 {[%emt 0:00:27]} 24. Qxb7 {[%emt 0:00:11]} h4 {[%emt 0:00:03]} 25. b4 {[%emt 0:00:32]} Qf2 {[%emt 0:00:08]} 26. Rf1 {[%emt 0:00:04]} Qe3 {[%emt 0:00:01]} 27. Rce1 {[%emt 0:00:35]} Qd4 {[%emt 0:00:02]} 28. e5 {[%emt 0:00:10]} dxe5 {[%emt 0:00:05]} 29. Qe4 {[%emt 0:00:05]} Qb2 {[%emt 0:00:05]} 30. Qxe5+ {[%emt 0:00:04]} Qxe5 {[%emt 0:00:02]} 31. Rxe5 {[%emt 0:00:00]} h3 {[%emt 0:00:01]} 32. gxh3 {[%emt 0:00:03]} Nf6 {[%emt 0:00:02]} 33. Ra5 {[%emt 0:00:03]} Rb8 {[%emt 0:00:03]} 34. a3 {[%emt 0:00:01]} Rb6 {[%emt 0:00:02]} 35. c5 {[%emt 0:00:02]} Rc6 {[%emt 0:00:02]} 36. Rd1 {[%emt 0:00:04]} Nd5 {[%emt 0:00:02]} 37. Kg1 {[%emt 0:00:09]} Nc3 {[%emt 0:00:02]} 38. Rd3 {[%emt 0:00:05]} Ne2+ {[%emt 0:00:03]} 39. Kf2 {[%emt 0:00:05]} Nf4 {[%emt 0:00:02]} 40. Rd6 {[%emt 0:00:02]} Rc8 {[%emt 0:00:02]} 41. Raxa6 {[%emt 0:00:04]} Nxh3+ {[%emt 0:00:02]} 42. Kg3 {[%emt 0:00:05]} Ng5 {[%emt 0:00:03]} 43. h4 {[%emt 0:00:03]} Nh7 {[%emt 0:00:02]} 44. Ra7 {[%emt 0:00:04]} Nf6 {[%emt 0:00:02]} 45. Rb6 {[%emt 0:00:04]} Nd5 {[%emt 0:00:03]} 46. Rbb7 {[%emt 0:00:03]} Rf8 {[%emt 0:00:02]} 47. c6 {[%emt 0:00:02]} e5 {[%emt 0:00:02]} 48. c7 {[%emt 0:00:02]} Nxc7 {[%emt 0:00:03]} 49. Rxc7 {[%emt 0:00:01]} 1-0

[Event "Queens Festival Europe 2022"]
[Site "Tornelo"]
[Date "2022.06.19"]
[Round "4.13"]
[White "Hariharan, Shambavi"]
[Black "Sainbayar, Anuurai"]
[Result "1-0"]
[ECO "D02"]
[WhiteElo "1517"]
[BlackElo "1512"]
[Annotator "NA RC"]
[PlyCount "57"]
[EventDate "2022.06.19"]
[EventType "swiss"]
[EventCountry "NET"]
[SourceTitle "playchess.com"]
[Source "ChessBase"]
[SourceQuality "1"]
[TimeControl "180+2"]

1. d4 {[%emt 0:00:02]} e6 {[%emt 0:00:05]} 2. Bf4 {[%emt 0:00:02]} c5 {[%emt 0:00:04]} 3. e3 {[%emt 0:00:02]} Nf6 {[%emt 0:00:07]} 4. c3 {[%emt 0:00:02]} Nc6 {[%emt 0:00:05]} 5. Nd2 {[%emt 0:00:02]} Be7 {[%emt 0:00:14]} 6. Ngf3 {[%emt 0:00:02]} d5 {[%emt 0:00:08]} 7. h3 {[%emt 0:00:02]} O-O {[%emt 0:00:09]} 8. Be2 {[%emt 0:00:03]} b6 {[%emt 0:00:17]} 9. O-O {[%emt 0:00:04]} Bb7 {[%emt 0:00:03]} 10. Re1 {[%emt 0:00:02]} Ne4 {[%emt 0:00:04]} 11. Nxe4 {[%emt 0:00:04]} dxe4 {[%emt 0:00:03]} 12. Nd2 {[%emt 0:00:02]} f5 {[%emt 0:00:09]} 13. Bc4 {[%emt 0:00:09]} Qd7 {[%emt 0:00:10]} 14. Qb3 {[%emt 0:00:05]} Na5 {[%emt 0:00:15]} 15. Bxe6+ {[%emt 0:00:04]} Qxe6 {[%emt 0:00:24]} 16. Qxe6+ {[%emt 0:00:02]} Rf7 {[%emt 0:00:02]} 17. Nc4 {[%emt 0:00:10]} Bc8 {[%emt 0:00:16]} 18. Qd5 {[%emt 0:00:08]} Bb7 {[%emt 0:00:05]} 19. Qd7 {[%emt 0:00:26]} Bc6 {[%emt 0:00:09]} 20. Qe6 {[%emt 0:00:02]} Nxc4 {[%emt 0:00:29]} 21. Qxc4 {[%emt 0:00:02]} Rc8 {[%emt 0:00:09]} 22. dxc5 {[%emt 0:00:08]} Bb7 {[%emt 0:00:07]} 23. Qe2 {[%emt 0:00:11]} Rxc5 {[%emt 0:00:05]} 24. Rad1 {[%emt 0:00:03]} Ra5 {[%emt 0:00:06]} 25. a3 {[%emt 0:00:03]} Ba6 {[%emt 0:00:02]} 26. Qc2 {[%emt 0:00:04]} Bc4 {[%emt 0:00:02]} 27. b3 {[%emt 0:00:04]} Be6 {[%emt 0:00:04]} 28. c4 {[%emt 0:00:03]} Rxa3 {[%emt 0:00:03]} 29. Ra1 {[%emt 0:00:03]} 1-0

[Event "Queens Festival Europe 2022"]
[Site "Tornelo"]
[Date "2022.06.19"]
[Round "4.21"]
[White "Robson, Caroline J"]
[Black "Ismayilova, Salbinaz"]
[Result "0-1"]
[ECO "C70"]
[WhiteElo "1546"]
[BlackElo "1090"]
[Annotator "NA RC"]
[PlyCount "104"]
[EventDate "2022.06.19"]
[EventType "swiss"]
[EventCountry "NET"]
[SourceTitle "playchess.com"]
[Source "ChessBase"]
[SourceQuality "1"]
[TimeControl "180+2"]

1. e4 {[%emt 0:00:02]} e5 {[%emt 0:00:04]} 2. Nf3 {[%emt 0:00:04]} Nc6 {[%emt 0:00:02]} 3. Bb5 {[%emt 0:00:04]} a6 {[%emt 0:00:06]} 4. Ba4 {[%emt 0:00:03]} Bc5 {[%emt 0:00:02]} 5. O-O {[%emt 0:00:03]} d6 {[%emt 0:00:03]} 6. h3 {[%emt 0:00:04]} Nf6 {[%emt 0:00:02]} 7. d3 {[%emt 0:00:05]} O-O {[%emt 0:00:02]} 8. Re1 {[%emt 0:00:07]} b5 {[%emt 0:00:09]} 9. Bb3 {[%emt 0:00:03]} Na5 {[%emt 0:00:06]} 10. c3 {[%emt 0:00:05]} Nxb3 {[%emt 0:00:02]} 11. axb3 {[%emt 0:00:00]} Be6 {[%emt 0:00:04]} 12. d4 {[%emt 0:00:05]} exd4 {[%emt 0:00:03]} 13. cxd4 {[%emt 0:00:03]} Bb4 {[%emt 0:00:03]} 14. Nc3 {[%emt 0:00:06]} c6 {[%emt 0:00:05]} 15. Bg5 {[%emt 0:00:08]} h6 {[%emt 0:00:08]} 16. Bxf6 {[%emt 0:00:14]} Qxf6 {[%emt 0:00:02]} 17. e5 {[%emt 0:00:04]} dxe5 {[%emt 0:00:03]} 18. dxe5 {[%emt 0:00:08]} Qe7 {[%emt 0:00:05]} 19. Qe2 {[%emt 0:00:12]} Rfe8 {[%emt 0:00:06]} 20. Nd4 {[%emt 0:00:03]} Qc7 {[%emt 0:00:11]} 21. Nxe6 {[%emt 0:00:05]} Rxe6 {[%emt 0:00:03]} 22. Qg4 {[%emt 0:00:15]} Rxe5 {[%emt 0:00:16]} 23. Qxb4 {[%emt 0:00:05]} Rxe1+ {[%emt 0:00:08]} 24. Rxe1 {[%emt 0:00:03]} c5 {[%emt 0:00:02]} 25. Qe4 {[%emt 0:00:06]} Rd8 {[%emt 0:00:05]} 26. Nd5 {[%emt 0:00:09]} Qd6 {[%emt 0:00:07]} 27. Nf4 {[%emt 0:00:08]} Qd2 {[%emt 0:00:05]} 28. Qe2 {[%emt 0:00:07]} Qxf4 {[%emt 0:00:04]} 29. Qe7 {[%emt 0:00:06]} Qd4 {[%emt 0:00:06]} 30. Qe2 {[%emt 0:00:05]} Qd6 {[%emt 0:00:08]} 31. Qe3 {[%emt 0:00:15]} Kh7 {[%emt 0:00:06]} 32. Qe4+ {[%emt 0:00:03]} Kg8 {[%emt 0:00:04]} 33. Qf3 {[%emt 0:00:07]} Qb6 {[%emt 0:00:20]} 34. Qf4 {[%emt 0:00:09]} Qd6 {[%emt 0:00:08]} 35. Qe3 {[%emt 0:00:03]} Kf8 {[%emt 0:00:11]} 36. Qe2 {[%emt 0:00:04]} Qd7 {[%emt 0:00:09]} 37. Qe3 {[%emt 0:00:05]} Qd6 {[%emt 0:00:09]} 38. Kh1 {[%emt 0:00:06]} Kg8 {[%emt 0:00:14]} 39. f4 {[%emt 0:00:04]} Qd2 {[%emt 0:00:05]} 40. Qxd2 {[%emt 0:00:04]} Rxd2 {[%emt 0:00:02]} 41. Re8+ {[%emt 0:00:04]} Kh7 {[%emt 0:00:04]} 42. Re3 {[%emt 0:00:04]} Rxb2 {[%emt 0:00:02]} 43. g4 {[%emt 0:00:04]} a5 {[%emt 0:00:02]} 44. f5 {[%emt 0:00:04]} a4 {[%emt 0:00:02]} 45. bxa4 {[%emt 0:00:04]} bxa4 {[%emt 0:00:02]} 46. Ra3 {[%emt 0:00:04]} Rb4 {[%emt 0:00:03]} 47. Kg2 {[%emt 0:00:04]} c4 {[%emt 0:00:02]} 48. Kf2 {[%emt 0:00:05]} g6 {[%emt 0:00:03]} 49. Ke3 {[%emt 0:00:04]} gxf5 {[%emt 0:00:02]} 50. gxf5 {[%emt 0:00:02]} Kg7 {[%emt 0:00:02]} 51. Kd4 {[%emt 0:00:06]} Kf6 {[%emt 0:00:03]} 52. Ke4 {[%emt 0:00:05]} Rb3 {[%emt 0:00:03]} 0-1

[Event "Queens Festival Europe 2022"]
[Site "Tornelo"]
[Date "2022.06.19"]
[Round "5.1"]
[White "Okuyaz, Duru"]
[Black "Machlik, Monika"]
[Result "1/2-1/2"]
[ECO "B16"]
[WhiteElo "2090"]
[BlackElo "2134"]
[Annotator "NA RC"]
[PlyCount "96"]
[EventDate "2022.06.19"]
[EventType "swiss"]
[EventCountry "NET"]
[SourceTitle "playchess.com"]
[Source "ChessBase"]
[SourceQuality "1"]
[TimeControl "180+2"]

1. e4 {[%emt 0:00:02]} c6 {[%emt 0:00:04]} 2. Nc3 {[%emt 0:00:02]} d5 {[%emt 0:00:02]} 3. Nf3 {[%emt 0:00:02]} Bg4 {[%emt 0:00:01]} 4. Be2 {[%emt 0:00:02]} e6 {[%emt 0:00:03]} 5. d4 {[%emt 0:00:02]} dxe4 {[%emt 0:00:05]} 6. Nxe4 {[%emt 0:00:02]} Nf6 {[%emt 0:00:23]} 7. Nxf6+ {[%emt 0:00:02]} gxf6 {[%emt 0:00:11]} 8. h3 {[%emt 0:00:13]} Bh5 {[%emt 0:00:04]} 9. Bf4 {[%emt 0:00:05]} Bd6 {[%emt 0:00:07]} 10. Qd2 {[%emt 0:00:09]} Qc7 {[%emt 0:00:05]} 11. Bxd6 {[%emt 0:00:03]} Qxd6 {[%emt 0:00:01]} 12. O-O-O {[%emt 0:00:08]} Nd7 {[%emt 0:00:07]} 13. Rhe1 {[%emt 0:00:02]} O-O-O {[%emt 0:00:05]} 14. Qa5 {[%emt 0:00:02]} Bxf3 {[%emt 0:00:09]} 15. Bxf3 {[%emt 0:00:02]} Kb8 {[%emt 0:00:03]} 16. Re3 {[%emt 0:00:05]} Qc7 {[%emt 0:00:15]} 17. Qb4 {[%emt 0:00:14]} Nb6 {[%emt 0:00:04]} 18. Ra3 {[%emt 0:00:04]} Nd5 {[%emt 0:00:08]} 19. Qa4 {[%emt 0:00:05]} a6 {[%emt 0:00:02]} 20. c4 {[%emt 0:00:05]} Ne7 {[%emt 0:00:06]} 21. Qb4 {[%emt 0:00:04]} Ka8 {[%emt 0:00:06]} 22. Kb1 {[%emt 0:00:15]} Rd7 {[%emt 0:00:02]} 23. Ra5 {[%emt 0:00:06]} Rhd8 {[%emt 0:00:09]} 24. Rh5 {[%emt 0:00:11]} Rxd4 {[%emt 0:00:15]} 25. Rxd4 {[%emt 0:00:01]} Rxd4 {[%emt 0:00:03]} 26. Rxh7 {[%emt 0:00:01]} c5 {[%emt 0:00:02]} 27. Qc3 {[%emt 0:00:05]} Ng6 {[%emt 0:00:10]} 28. Rg7 {[%emt 0:00:07]} Nh4 {[%emt 0:00:04]} 29. a3 {[%emt 0:00:24]} Nxf3 {[%emt 0:00:09]} 30. Qxf3 {[%emt 0:00:02]} f5 {[%emt 0:00:22]} 31. g4 {[%emt 0:00:08]} fxg4 {[%emt 0:00:08]} 32. hxg4 {[%emt 0:00:02]} Rd7 {[%emt 0:00:05]} 33. g5 {[%emt 0:00:03]} Ka7 {[%emt 0:00:03]} 34. Qe3 {[%emt 0:00:07]} Qd6 {[%emt 0:00:04]} 35. g6 {[%emt 0:00:05]} fxg6 {[%emt 0:00:09]} 36. Rxg6 {[%emt 0:00:03]} Qd1+ {[%emt 0:00:02]} 37. Ka2 {[%emt 0:00:02]} Qd4 {[%emt 0:00:03]} 38. Qxd4 {[%emt 0:00:04]} Rxd4 {[%emt 0:00:02]} 39. Rxe6 {[%emt 0:00:02]} Rxc4 {[%emt 0:00:01]} 40. Re1 {[%emt 0:00:03]} Rf4 {[%emt 0:00:02]} 41. Rf1 {[%emt 0:00:01]} Kb6 {[%emt 0:00:01]} 42. Kb3 {[%emt 0:00:02]} Kc6 {[%emt 0:00:02]} 43. Kc3 {[%emt 0:00:01]} Kd5 {[%emt 0:00:01]} 44. Kd3 {[%emt 0:00:02]} b5 {[%emt 0:00:04]} 45. Ke3 {[%emt 0:00:04]} Re4+ {[%emt 0:00:01]} 46. Kd3 {[%emt 0:00:03]} Rf4 {[%emt 0:00:02]} 47. Ke3 {[%emt 0:00:02]} Re4+ {[%emt 0:00:01]} 48. Kd3 {[%emt 0:00:01]} Rf4 {[%emt 0:00:07]} 1/2-1/2

[Event "Queens Festival Europe 2022"]
[Site "Tornelo"]
[Date "2022.06.19"]
[Round "5.1"]
[White "Deak-Sala, Emilia"]
[Black "Vujcic, Milena"]
[Result "0-1"]
[ECO "C54"]
[WhiteElo "1883"]
[BlackElo "1987"]
[Annotator "NA RC"]
[PlyCount "90"]
[EventDate "2022.06.19"]
[EventType "swiss"]
[EventCountry "NET"]
[SourceTitle "playchess.com"]
[Source "ChessBase"]
[SourceQuality "1"]
[TimeControl "180+2"]

1. e4 {[%emt 0:00:02]} e5 {[%emt 0:00:04]} 2. Nf3 {[%emt 0:00:02]} Nc6 {[%emt 0:00:02]} 3. Bc4 {[%emt 0:00:02]} Bc5 {[%emt 0:00:02]} 4. d3 {[%emt 0:00:03]} Nf6 {[%emt 0:00:02]} 5. c3 {[%emt 0:00:02]} d6 {[%emt 0:00:03]} 6. Bb3 {[%emt 0:00:02]} Bb6 {[%emt 0:00:02]} 7. Nbd2 {[%emt 0:00:02]} O-O {[%emt 0:00:02]} 8. h3 {[%emt 0:00:02]} h6 {[%emt 0:00:02]} 9. Nf1 {[%emt 0:00:02]} Ne7 {[%emt 0:00:03]} 10. Ng3 {[%emt 0:00:02]} Ng6 {[%emt 0:00:01]} 11. O-O {[%emt 0:00:02]} c6 {[%emt 0:00:02]} 12. Nh2 {[%emt 0:00:11]} d5 {[%emt 0:00:05]} 13. Qe2 {[%emt 0:00:03]} Re8 {[%emt 0:00:37]} 14. Ng4 {[%emt 0:00:13]} Nxg4 {[%emt 0:00:35]} 15. hxg4 {[%emt 0:00:03]} Nf4 {[%emt 0:00:02]} 16. Bxf4 {[%emt 0:00:12]} exf4 {[%emt 0:00:02]} 17. Nf5 {[%emt 0:00:01]} Qf6 {[%emt 0:00:31]} 18. Qf3 {[%emt 0:00:08]} Bc7 {[%emt 0:00:10]} 19. Rfe1 {[%emt 0:00:28]} dxe4 {[%emt 0:00:02]} 20. dxe4 {[%emt 0:00:03]} Be5 {[%emt 0:00:03]} 21. Rad1 {[%emt 0:00:12]} a5 {[%emt 0:00:13]} 22. a4 {[%emt 0:00:10]} Qg5 {[%emt 0:00:06]} 23. g3 {[%emt 0:00:30]} g6 {[%emt 0:00:04]} 24. gxf4 {[%emt 0:00:27]} Bxf4 {[%emt 0:00:06]} 25. Bxf7+ {[%emt 0:00:14]} Kxf7 {[%emt 0:00:09]} 26. Nd6+ {[%emt 0:00:02]} Ke7 {[%emt 0:00:02]} 27. Nxe8 {[%emt 0:00:04]} Bxg4 {[%emt 0:00:02]} 28. Qg2 {[%emt 0:00:16]} Bxd1 {[%emt 0:00:03]} 29. Qxg5+ {[%emt 0:00:02]} Bxg5 {[%emt 0:00:06]} 30. Rxd1 {[%emt 0:00:01]} Rxe8 {[%emt 0:00:02]} 31. f3 {[%emt 0:00:08]} Ke6 {[%emt 0:00:02]} 32. Kg2 {[%emt 0:00:03]} Rc8 {[%emt 0:00:01]} 33. Rd3 {[%emt 0:00:06]} Rd8 {[%emt 0:00:02]} 34. Rxd8 {[%emt 0:00:02]} Bxd8 {[%emt 0:00:02]} 35. f4 {[%emt 0:00:02]} Bc7 {[%emt 0:00:02]} 36. Kf3 {[%emt 0:00:01]} g5 {[%emt 0:00:03]} 37. fxg5 {[%emt 0:00:05]} hxg5 {[%emt 0:00:02]} 38. Kg4 {[%emt 0:00:02]} Bf4 {[%emt 0:00:02]} 39. b4 {[%emt 0:00:03]} b6 {[%emt 0:00:03]} 40. c4 {[%emt 0:00:04]} axb4 {[%emt 0:00:03]} 41. c5 {[%emt 0:00:01]} bxc5 {[%emt 0:00:02]} 42. a5 {[%emt 0:00:02]} Bb8 {[%emt 0:00:02]} 43. Kxg5 {[%emt 0:00:02]} Ke5 {[%emt 0:00:01]} 44. Kg4 {[%emt 0:00:03]} b3 {[%emt 0:00:02]} 45. Kf3 {[%emt 0:00:01]} b2 {[%emt 0:00:01]} 0-1

[Event "Queens Festival Europe 2022"]
[Site "Tornelo"]
[Date "2022.06.19"]
[Round "5.1"]
[White "Vicze, Zsofia"]
[Black "Khalilova, Khadija"]
[Result "1-0"]
[ECO "B55"]
[WhiteElo "1749"]
[BlackElo "1777"]
[Annotator "NA RC"]
[PlyCount "101"]
[EventDate "2022.06.19"]
[EventType "swiss"]
[EventCountry "NET"]
[SourceTitle "playchess.com"]
[Source "ChessBase"]
[SourceQuality "1"]
[TimeControl "180+2"]

1. e4 {[%emt 0:00:02]} c5 {[%emt 0:00:05]} 2. Nf3 {[%emt 0:00:03]} d6 {[%emt 0:00:02]} 3. d4 {[%emt 0:00:02]} cxd4 {[%emt 0:00:02]} 4. Nxd4 {[%emt 0:00:01]} Nf6 {[%emt 0:00:02]} 5. f3 {[%emt 0:00:01]} a6 {[%emt 0:00:02]} 6. c4 {[%emt 0:00:02]} e6 {[%emt 0:00:03]} 7. Nc3 {[%emt 0:00:01]} Be7 {[%emt 0:00:02]} 8. Be3 {[%emt 0:00:02]} O-O {[%emt 0:00:03]} 9. Be2 {[%emt 0:00:01]} Qc7 {[%emt 0:00:03]} 10. O-O {[%emt 0:00:03]} b6 {[%emt 0:00:04]} 11. Rc1 {[%emt 0:00:03]} Bb7 {[%emt 0:00:02]} 12. b3 {[%emt 0:00:05]} Nbd7 {[%emt 0:00:03]} 13. Qd3 {[%emt 0:00:04]} Rac8 {[%emt 0:00:08]} 14. Rfd1 {[%emt 0:00:04]} Rfd8 {[%emt 0:00:03]} 15. Qb1 {[%emt 0:00:04]} Qb8 {[%emt 0:00:04]} 16. Kh1 {[%emt 0:00:05]} Ne5 {[%emt 0:00:12]} 17. Na4 {[%emt 0:00:24]} Ba8 {[%emt 0:00:12]} 18. Nc2 {[%emt 0:00:05]} Ned7 {[%emt 0:00:19]} 19. Nb4 {[%emt 0:00:19]} Qb7 {[%emt 0:00:21]} 20. Nc3 {[%emt 0:00:12]} Nc5 {[%emt 0:00:11]} 21. Nc2 {[%emt 0:00:11]} d5 {[%emt 0:00:18]} 22. cxd5 {[%emt 0:00:24]} exd5 {[%emt 0:00:04]} 23. e5 {[%emt 0:00:02]} Ne8 {[%emt 0:00:11]} 24. f4 {[%emt 0:00:02]} Nc7 {[%emt 0:00:24]} 25. Bf3 {[%emt 0:00:03]} Qa7 {[%emt 0:00:09]} 26. Nd4 {[%emt 0:00:05]} N7e6 {[%emt 0:00:04]} 27. Nf5 {[%emt 0:00:10]} Bf8 {[%emt 0:00:04]} 28. Nxd5 {[%emt 0:00:27]} Bxd5 {[%emt 0:00:04]} 29. Bxd5 {[%emt 0:00:02]} g6 {[%emt 0:00:04]} 30. Ng3 {[%emt 0:00:06]} Qe7 {[%emt 0:00:03]} 31. Bf3 {[%emt 0:00:05]} Bh6 {[%emt 0:00:07]} 32. Ne2 {[%emt 0:00:07]} Qh4 {[%emt 0:00:06]} 33. g3 {[%emt 0:00:03]} Qe7 {[%emt 0:00:03]} 34. Kg2 {[%emt 0:00:08]} Bg7 {[%emt 0:00:03]} 35. Nc3 {[%emt 0:00:08]} h6 {[%emt 0:00:06]} 36. Ne4 {[%emt 0:00:03]} g5 {[%emt 0:00:04]} 37. Nd6 {[%emt 0:00:06]} Rc7 {[%emt 0:00:05]} 38. Bxc5 {[%emt 0:00:03]} bxc5 {[%emt 0:00:03]} 39. Qf5 {[%emt 0:00:10]} Nd4 {[%emt 0:00:02]} 40. Qe4 {[%emt 0:00:03]} gxf4 {[%emt 0:00:03]} 41. gxf4 {[%emt 0:00:03]} Kh8 {[%emt 0:00:04]} 42. Kh1 {[%emt 0:00:02]} Rg8 {[%emt 0:00:02]} 43. Nf5 {[%emt 0:00:02]} Qe6 {[%emt 0:00:03]} 44. Nxd4 {[%emt 0:00:01]} cxd4 {[%emt 0:00:02]} 45. Rxc7 {[%emt 0:00:02]} Bf8 {[%emt 0:00:06]} 46. Rcc1 {[%emt 0:00:03]} Qh3 {[%emt 0:00:02]} 47. Bg2 {[%emt 0:00:02]} Qh4 {[%emt 0:00:02]} 48. Rg1 {[%emt 0:00:02]} Be7 {[%emt 0:00:04]} 49. Qxd4 {[%emt 0:00:01]} Bg5 {[%emt 0:00:03]} 50. fxg5 {[%emt 0:00:03]} Qxd4 {[%emt 0:00:02]} 51. Rce1 {[%emt 0:00:03]} 1-0

[Event "Queens Festival Europe 2022"]
[Site "Tornelo"]
[Date "2022.06.19"]
[Round "5.1"]
[White "Aydogan, Arya"]
[Black "Vujovic, Vera"]
[Result "1/2-1/2"]
[ECO "B52"]
[WhiteElo "1409"]
[BlackElo "1353"]
[Annotator "NA RC"]
[PlyCount "131"]
[EventDate "2022.06.19"]
[EventType "swiss"]
[EventCountry "NET"]
[SourceTitle "playchess.com"]
[Source "ChessBase"]
[SourceQuality "1"]
[TimeControl "180+2"]

1. e4 {[%emt 0:00:02]} c5 {[%emt 0:00:04]} 2. Nf3 {[%emt 0:00:02]} d6 {[%emt 0:00:01]} 3. Bb5+ {[%emt 0:00:02]} Bd7 {[%emt 0:00:02]} 4. Bxd7+ {[%emt 0:00:01]} Qxd7 {[%emt 0:00:01]} 5. O-O {[%emt 0:00:01]} Nc6 {[%emt 0:00:02]} 6. Re1 {[%emt 0:00:03]} Nf6 {[%emt 0:00:02]} 7. c3 {[%emt 0:00:01]} g6 {[%emt 0:00:01]} 8. d4 {[%emt 0:00:02]} cxd4 {[%emt 0:00:01]} 9. cxd4 {[%emt 0:00:01]} Bg7 {[%emt 0:00:01]} 10. d5 {[%emt 0:00:08]} Ne5 {[%emt 0:00:04]} 11. Nxe5 {[%emt 0:00:01]} dxe5 {[%emt 0:00:01]} 12. Nc3 {[%emt 0:00:02]} O-O {[%emt 0:00:03]} 13. f3 {[%emt 0:00:02]} e6 {[%emt 0:00:03]} 14. Bg5 {[%emt 0:00:02]} exd5 {[%emt 0:00:06]} 15. Bxf6 {[%emt 0:00:01]} Bxf6 {[%emt 0:00:07]} 16. Nxd5 {[%emt 0:00:02]} Qd8 {[%emt 0:00:15]} 17. Rc1 {[%emt 0:00:05]} Bg7 {[%emt 0:00:06]} 18. Qd3 {[%emt 0:00:14]} Kh8 {[%emt 0:00:08]} 19. Rc3 {[%emt 0:00:09]} Rc8 {[%emt 0:00:05]} 20. Rec1 {[%emt 0:00:06]} Qd7 {[%emt 0:00:05]} 21. Rxc8 {[%emt 0:00:13]} Rxc8 {[%emt 0:00:02]} 22. Rxc8+ {[%emt 0:00:02]} Qxc8 {[%emt 0:00:02]} 23. Qc3 {[%emt 0:00:01]} Qxc3 {[%emt 0:00:03]} 24. Nxc3 {[%emt 0:00:02]} Bf8 {[%emt 0:00:03]} 25. Kf1 {[%emt 0:00:06]} f5 {[%emt 0:00:03]} 26. Ke2 {[%emt 0:00:04]} Kg7 {[%emt 0:00:02]} 27. Nd5 {[%emt 0:00:02]} Kf7 {[%emt 0:00:04]} 28. Kd3 {[%emt 0:00:03]} Ke6 {[%emt 0:00:05]} 29. b3 {[%emt 0:00:02]} Kd6 {[%emt 0:00:04]} 30. Kc4 {[%emt 0:00:03]} a6 {[%emt 0:00:16]} 31. a4 {[%emt 0:00:04]} Kc6 {[%emt 0:00:08]} 32. Nc3 {[%emt 0:00:24]} Bc5 {[%emt 0:00:27]} 33. h3 {[%emt 0:00:19]} Bg1 {[%emt 0:00:25]} 34. b4 {[%emt 0:00:09]} Bd4 {[%emt 0:00:16]} 35. b5+ {[%emt 0:00:06]} axb5+ {[%emt 0:00:13]} 36. axb5+ {[%emt 0:00:22]} Kd6 {[%emt 0:00:11]} 37. Nd5 {[%emt 0:00:07]} fxe4 {[%emt 0:00:06]} 38. fxe4 {[%emt 0:00:03]} b6 {[%emt 0:00:06]} 39. Nf6 {[%emt 0:00:06]} h5 {[%emt 0:00:08]} 40. Nd5 {[%emt 0:00:06]} Bc5 {[%emt 0:00:04]} 41. Nf6 {[%emt 0:00:04]} Ke6 {[%emt 0:00:04]} 42. Nd5 {[%emt 0:00:03]} g5 {[%emt 0:00:04]} 43. g4 {[%emt 0:00:05]} hxg4 {[%emt 0:00:03]} 44. hxg4 {[%emt 0:00:02]} Bg1 {[%emt 0:00:02]} 45. Nc3 {[%emt 0:00:04]} Kd6 {[%emt 0:00:02]} 46. Ne2 {[%emt 0:00:02]} Bc5 {[%emt 0:00:02]} 47. Nc1 {[%emt 0:00:04]} Be3 {[%emt 0:00:01]} 48. Nd3 {[%emt 0:00:01]} Bd4 {[%emt 0:00:02]} 49. Ne1 {[%emt 0:00:04]} Bf2 {[%emt 0:00:02]} 50. Nf3 {[%emt 0:00:02]} Be3 {[%emt 0:00:01]} 51. Kd3 {[%emt 0:00:05]} Bf4 {[%emt 0:00:02]} 52. Kc4 {[%emt 0:00:01]} Be3 {[%emt 0:00:01]} 53. Ne1 {[%emt 0:00:05]} Bd2 {[%emt 0:00:03]} 54. Nc2 {[%emt 0:00:03]} Bf4 {[%emt 0:00:02]} 55. Nb4 {[%emt 0:00:02]} Be3 {[%emt 0:00:02]} 56. Nd5 {[%emt 0:00:02]} Bc5 {[%emt 0:00:02]} 57. Nf6 {[%emt 0:00:02]} Be3 {[%emt 0:00:03]} 58. Nd5 {[%emt 0:00:05]} Bc5 {[%emt 0:00:01]} 59. Nc3 {[%emt 0:00:02]} Bd4 {[%emt 0:00:02]} 60. Ne2 {[%emt 0:00:02]} Bc5 {[%emt 0:00:01]} 61. Ng3 {[%emt 0:00:02]} Bf2 {[%emt 0:00:04]} 62. Nf5+ {[%emt 0:00:02]} Ke6 {[%emt 0:00:02]} 63. Ng7+ {[%emt 0:00:03]} Kd6 {[%emt 0:00:02]} 64. Nf5+ {[%emt 0:00:03]} Ke6 {[%emt 0:00:01]} 65. Ng7+ {[%emt 0:00:05]} Kd6 {[%emt 0:00:01]} 66. Nf5+ {[%emt 0:00:04]} 1/2-1/2